[Event "Late-Titled-Tuesday-Blitz-December-26-2023"]
[Site "Chess.com"]
[Date "2023.12.26"]
[Round "8"]
[White "youngdinousaur"]
[Black "Defenstrator"]
[Result "1/2-1/2"]
[WhiteElo "2309"]
[BlackElo "2462"]
[TimeControl "180+1"]
[EndTime "15:27:49 PST"]
[Termination "Game drawn by agreement"]

1. d4 {[%clk 0:03:00.9]} 1... d5 {[%clk 0:02:22.2]} 2. Nf3 {[%clk 0:03:00.7]}
2... Nf6 {[%clk 0:02:13.7]} 3. Bf4 {[%clk 0:03:00.7]} 3... e6 {[%clk 0:02:04.7]}
4. e3 {[%clk 0:03:00.2]} 4... Bd6 {[%clk 0:02:05]} 5. c3 {[%clk 0:02:59.6]} 5...
c6 {[%clk 0:01:57.3]} 6. Bd3 {[%clk 0:02:56.9]} 6... Qc7 {[%clk 0:01:45.4]} 7.
Bg3 {[%clk 0:02:55.2]} 7... Nbd7 {[%clk 0:01:44.4]} 8. Nbd2 {[%clk 0:02:53.1]}
8... e5 {[%clk 0:01:41.1]} 9. dxe5 {[%clk 0:02:54]} 9... Nxe5 {[%clk 0:01:41.7]}
10. Nxe5 {[%clk 0:02:54.4]} 10... Bxe5 {[%clk 0:01:42.2]} 11. Nf3 {[%clk
0:02:52.5]} 11... Bxg3 {[%clk 0:01:41.9]} 12. hxg3 {[%clk 0:02:53.4]} 12... Bg4
{[%clk 0:01:38.9]} 13. Qc2 {[%clk 0:02:49.7]} 13... Bh5 {[%clk 0:01:21.4]} 14.
a3 {[%clk 0:02:33.9]} 14... Bg6 {[%clk 0:01:09.8]} 15. Bxg6 {[%clk 0:02:32]}
15... fxg6 {[%clk 0:01:10]} 16. c4 {[%clk 0:02:28.8]} 16... O-O-O {[%clk
0:01:06.3]} 17. O-O {[%clk 0:02:25.9]} 17... h5 {[%clk 0:00:53.6]} 18. cxd5
{[%clk 0:02:19.5]} 18... Rxd5 {[%clk 0:00:48.2]} 19. Rfd1 {[%clk 0:02:18.3]}
19... Rf5 {[%clk 0:00:30.2]} 20. Rd4 {[%clk 0:02:09.7]} 20... Ng4 {[%clk
0:00:30.3]} 21. Rad1 {[%clk 0:01:44.2]} 21... Rhf8 {[%clk 0:00:30.9]} 22. b4
{[%clk 0:01:23]} 22... Ne5 {[%clk 0:00:28.9]} 23. Rf4 {[%clk 0:01:09.5]} 23...
Nxf3+ {[%clk 0:00:28.7]} 24. gxf3 {[%clk 0:01:08.3]} 24... Rxf4 {[%clk
0:00:26.7]} 25. gxf4 {[%clk 0:01:08.5]} 25... g5 {[%clk 0:00:23.2]} 26. fxg5
{[%clk 0:01:04.8]} 26... Rxf3 {[%clk 0:00:23.5]} 27. Qe4 {[%clk 0:00:55.1]}
27... Qf7 {[%clk 0:00:22.1]} 28. Rd2 {[%clk 0:00:33.8]} 28... Rf5 {[%clk
0:00:13.8]} 29. f4 {[%clk 0:00:27.8]} 29... g6 {[%clk 0:00:11.4]} 30. Qd4 {[%clk
0:00:26.9]} 30... Rd5 {[%clk 0:00:10.9]} 31. Qh8+ {[%clk 0:00:25.6]} 31... Kc7
{[%clk 0:00:11.8]} 32. Rxd5 {[%clk 0:00:25.5]} 32... cxd5 {[%clk 0:00:09.1]} 33.
Qe5+ {[%clk 0:00:24.2]} 33... Kc6 {[%clk 0:00:07.5]} 34. Qc3+ {[%clk 0:00:24.1]}
34... Kb5 {[%clk 0:00:03.4]} 35. Qc5+ {[%clk 0:00:20.4]} 35... Ka4 {[%clk
0:00:04.2]} 36. Qxa7+ {[%clk 0:00:20.4]} 36... Kb3 {[%clk 0:00:05.1]} 37. b5
{[%clk 0:00:15.9]} 37... Qf5 {[%clk 0:00:05.1]} 38. Qd4 {[%clk 0:00:14.4]} 38...
Qg4+ {[%clk 0:00:04.6]} 39. Kf2 {[%clk 0:00:13.7]} 39... Qh4+ {[%clk 0:00:05.5]}
40. Ke2 {[%clk 0:00:13.5]} 40... Qg4+ {[%clk 0:00:05.2]} 41. Kf2 {[%clk
0:00:14]} 41... Qh4+ {[%clk 0:00:06.1]} 42. Ke2 {[%clk 0:00:14.5]} 42... Qg4+
{[%clk 0:00:07]} 1/2-1/2

[Event "Late-Titled-Tuesday-Blitz-December-26-2023"]
[Site "Chess.com"]
[Date "2023.12.26"]
[Round "8"]
[White "rasmussvane"]
[Black "GMBenjaminBok"]
[Result "1-0"]
[WhiteElo "2931"]
[BlackElo "2959"]
[TimeControl "180+1"]
[EndTime "15:27:55 PST"]
[Termination "rasmussvane won by resignation"]

1. Nf3 {[%clk 0:02:58.5]} 1... d5 {[%clk 0:03:00]} 2. g3 {[%clk 0:02:58.6]} 2...
c6 {[%clk 0:03:00.5]} 3. Bg2 {[%clk 0:02:59]} 3... Bg4 {[%clk 0:03:01.1]} 4. O-O
{[%clk 0:02:59.6]} 4... Nd7 {[%clk 0:03:01.6]} 5. h3 {[%clk 0:03:00.4]} 5... Bh5
{[%clk 0:03:01.9]} 6. d4 {[%clk 0:03:01]} 6... e6 {[%clk 0:03:01.9]} 7. c4
{[%clk 0:03:01.1]} 7... Be7 {[%clk 0:03:02.3]} 8. Nc3 {[%clk 0:02:56.3]} 8...
Ngf6 {[%clk 0:03:00.7]} 9. cxd5 {[%clk 0:02:52.7]} 9... exd5 {[%clk 0:03:00.5]}
10. Ne5 {[%clk 0:02:52.9]} 10... Bg6 {[%clk 0:02:55.4]} 11. f4 {[%clk
0:02:51.6]} 11... Be4 {[%clk 0:02:53.8]} 12. Nxe4 {[%clk 0:02:52]} 12... Nxe4
{[%clk 0:02:46.8]} 13. Bxe4 {[%clk 0:02:52.2]} 13... dxe4 {[%clk 0:02:47.7]} 14.
Qb3 {[%clk 0:02:52.5]} 14... Nxe5 {[%clk 0:02:30.9]} 15. dxe5 {[%clk 0:02:48.8]}
15... Qb6+ {[%clk 0:02:15.1]} 16. Be3 {[%clk 0:02:48.6]} 16... Bc5 {[%clk
0:02:15]} 17. Bxc5 {[%clk 0:02:39.5]} 17... Qxc5+ {[%clk 0:02:15.9]} 18. Kg2
{[%clk 0:02:39.7]} 18... Qb6 {[%clk 0:01:52.2]} 19. Rfd1 {[%clk 0:02:36.2]}
19... Qxb3 {[%clk 0:01:23.8]} 20. axb3 {[%clk 0:02:37.1]} 20... Ke7 {[%clk
0:01:24.2]} 21. Kf2 {[%clk 0:02:06.1]} 21... a5 {[%clk 0:00:34.1]} 22. Ke3
{[%clk 0:01:59.2]} 22... Ra6 {[%clk 0:00:34.4]} 23. Kxe4 {[%clk 0:01:59.7]}
23... Rb6 {[%clk 0:00:34.6]} 24. Rd3 {[%clk 0:01:57.5]} 24... Rd8 {[%clk
0:00:31.1]} 25. Rad1 {[%clk 0:01:32.4]} 25... Rxd3 {[%clk 0:00:27.8]} 26. Rxd3
{[%clk 0:01:33.3]} 26... Rb4+ {[%clk 0:00:27.6]} 27. Kf3 {[%clk 0:01:29.8]}
27... g6 {[%clk 0:00:27]} 28. g4 {[%clk 0:01:29.2]} 28... Ke6 {[%clk 0:00:23.1]}
29. e3 {[%clk 0:01:20]} 29... c5 {[%clk 0:00:20.7]} 30. h4 {[%clk 0:01:01.6]}
30... b5 {[%clk 0:00:12.6]} 31. h5 {[%clk 0:00:46.1]} 31... gxh5 {[%clk
0:00:13.5]} 32. gxh5 {[%clk 0:00:46.7]} 32... h6 {[%clk 0:00:13.8]} 33. Rd6+
{[%clk 0:00:45.5]} 33... Ke7 {[%clk 0:00:13.9]} 34. Rxh6 {[%clk 0:00:35.5]}
34... Rxb3 {[%clk 0:00:13.7]} 35. Rc6 {[%clk 0:00:31.5]} 35... c4 {[%clk
0:00:08.6]} 36. f5 {[%clk 0:00:26.2]} 36... Rxb2 {[%clk 0:00:08.4]} 37. Rc7+
{[%clk 0:00:21.1]} 37... Ke8 {[%clk 0:00:06.6]} 38. f6 {[%clk 0:00:15.6]} 38...
Rh2 {[%clk 0:00:05.8]} 39. Re7+ {[%clk 0:00:13]} 39... Kd8 {[%clk 0:00:06.1]}
40. Rxf7 {[%clk 0:00:12.1]} 40... c3 {[%clk 0:00:06.6]} 41. e6 {[%clk
0:00:07.8]} 41... c2 {[%clk 0:00:05]} 42. e7+ {[%clk 0:00:08.4]} 42... Kd7
{[%clk 0:00:02.3]} 43. Rf8 {[%clk 0:00:09]} 43... Rh3+ {[%clk 0:00:01.6]} 44.
Kg2 {[%clk 0:00:08.7]} 44... Rxe3 {[%clk 0:00:01.7]} 45. Rd8+ {[%clk 0:00:04.2]}
45... Kc7 {[%clk 0:00:02]} 46. f7 {[%clk 0:00:04.7]} 46... c1=Q {[%clk
0:00:01.9]} 47. Rc8+ {[%clk 0:00:02.4]} 47... Kxc8 {[%clk 0:00:02.5]} 48. e8=Q+
{[%clk 0:00:03]} 48... Rxe8 {[%clk 0:00:02]} 49. fxe8=Q+ {[%clk 0:00:03.9]}
49... Kc7 {[%clk 0:00:02.6]} 50. Qxb5 {[%clk 0:00:04.5]} 50... Qc6+ {[%clk
0:00:02.2]} 51. Qxc6+ {[%clk 0:00:05]} 51... Kxc6 {[%clk 0:00:03.1]} 52. h6
{[%clk 0:00:05.7]} 52... a4 {[%clk 0:00:03.7]} 53. h7 {[%clk 0:00:06.6]} 53...
a3 {[%clk 0:00:04.4]} 54. h8=Q {[%clk 0:00:07.5]} 1-0

[Event "Late-Titled-Tuesday-Blitz-December-26-2023"]
[Site "Chess.com"]
[Date "2023.12.26"]
[Round "8"]
[White "ZuraTqebuchava"]
[Black "EsmeraldasAnderson03"]
[Result "0-1"]
[WhiteElo "2178"]
[BlackElo "2396"]
[TimeControl "180+1"]
[EndTime "15:27:56 PST"]
[Termination "EsmeraldasAnderson03 won on time"]

1. e4 {[%clk 0:03:00]} 1... c5 {[%clk 0:02:33.3]} 2. Nf3 {[%clk 0:02:59.2]} 2...
d6 {[%clk 0:02:33.2]} 3. Bb5+ {[%clk 0:02:58.8]} 3... Bd7 {[%clk 0:02:31.7]} 4.
Bxd7+ {[%clk 0:02:56.9]} 4... Qxd7 {[%clk 0:02:32.6]} 5. c4 {[%clk 0:02:57.3]}
5... Nf6 {[%clk 0:02:32.1]} 6. Nc3 {[%clk 0:02:52.3]} 6... Nc6 {[%clk
0:02:30.4]} 7. d4 {[%clk 0:02:48.7]} 7... cxd4 {[%clk 0:02:31.3]} 8. Nxd4 {[%clk
0:02:49]} 8... Nxd4 {[%clk 0:02:31.8]} 9. Qxd4 {[%clk 0:02:48.9]} 9... g6 {[%clk
0:02:32.7]} 10. O-O {[%clk 0:02:47.1]} 10... Bg7 {[%clk 0:02:32.7]} 11. Qd3
{[%clk 0:02:39]} 11... O-O {[%clk 0:02:32.2]} 12. h3 {[%clk 0:02:29.3]} 12...
Rfc8 {[%clk 0:02:29.4]} 13. Be3 {[%clk 0:02:20.7]} 13... a6 {[%clk 0:02:19.4]}
14. Rac1 {[%clk 0:02:16.4]} 14... b5 {[%clk 0:01:52.5]} 15. cxb5 {[%clk
0:02:15.2]} 15... axb5 {[%clk 0:01:53.4]} 16. a3 {[%clk 0:02:11.5]} 16... Rab8
{[%clk 0:01:30.1]} 17. Rfd1 {[%clk 0:01:55.3]} 17... b4 {[%clk 0:01:28.4]} 18.
axb4 {[%clk 0:01:51.1]} 18... Rxb4 {[%clk 0:01:29.3]} 19. e5 {[%clk 0:01:45.7]}
19... Ne8 {[%clk 0:01:24.1]} 20. Nd5 {[%clk 0:01:39.4]} 20... Rxc1 {[%clk
0:01:22.4]} 21. Bxc1 {[%clk 0:01:29.6]} 21... Rb7 {[%clk 0:00:47.3]} 22. exd6
{[%clk 0:01:23.8]} 22... Nxd6 {[%clk 0:00:44.6]} 23. Nxe7+ {[%clk 0:00:57.5]}
23... Qxe7 {[%clk 0:00:38.2]} 24. Qxd6 {[%clk 0:00:57.1]} 24... Qxd6 {[%clk
0:00:39.1]} 25. Rxd6 {[%clk 0:00:57]} 25... Bxb2 {[%clk 0:00:35]} 26. Bh6 {[%clk
0:00:53.7]} 26... f5 {[%clk 0:00:33.5]} 27. g3 {[%clk 0:00:40.7]} 27... Bg7
{[%clk 0:00:30.4]} 28. Bf4 {[%clk 0:00:33.6]} 28... Kf7 {[%clk 0:00:24.3]} 29.
Kg2 {[%clk 0:00:31.9]} 29... Re7 {[%clk 0:00:19.9]} 30. Ra6 {[%clk 0:00:28.1]}
30... Bf6 {[%clk 0:00:19.3]} 31. h4 {[%clk 0:00:27.2]} 31... Rd7 {[%clk
0:00:17.6]} 32. Kf3 {[%clk 0:00:24.3]} 32... Re7 {[%clk 0:00:17.6]} 33. Rxf6+
{[%clk 0:00:23.2]} 33... Kxf6 {[%clk 0:00:17.5]} 34. Bg5+ {[%clk 0:00:23.8]}
34... Ke6 {[%clk 0:00:18.4]} 35. Bxe7 {[%clk 0:00:24.2]} 35... Kxe7 {[%clk
0:00:19.3]} 36. Kf4 {[%clk 0:00:23.6]} 36... Kf6 {[%clk 0:00:19.8]} 37. f3
{[%clk 0:00:23]} 37... h6 {[%clk 0:00:20.2]} 38. Ke3 {[%clk 0:00:16.2]} 38...
Ke5 {[%clk 0:00:20]} 39. Kd3 {[%clk 0:00:08.5]} 39... Kd5 {[%clk 0:00:20]} 40.
Ke3 {[%clk 0:00:08.5]} 40... Ke5 {[%clk 0:00:18.5]} 41. Kd3 {[%clk 0:00:08.8]}
41... g5 {[%clk 0:00:16.6]} 42. hxg5 {[%clk 0:00:08]} 42... hxg5 {[%clk
0:00:17.5]} 43. g4 {[%clk 0:00:06.2]} 43... fxg4 {[%clk 0:00:14]} 44. fxg4
{[%clk 0:00:06.2]} 44... Kf4 {[%clk 0:00:14.6]} 45. Ke2 {[%clk 0:00:06.7]} 45...
Kxg4 {[%clk 0:00:15.2]} 46. Kf2 {[%clk 0:00:07.2]} 46... Kh3 {[%clk 0:00:15.8]}
47. Kf1 {[%clk 0:00:05.1]} 47... Kg3 {[%clk 0:00:15.1]} 48. Kg1 {[%clk
0:00:05.1]} 48... g4 {[%clk 0:00:13.9]} 49. Kh1 {[%clk 0:00:05.5]} 49... Kf2
{[%clk 0:00:14.5]} 50. Kh2 {[%clk 0:00:05.7]} 50... g3+ {[%clk 0:00:15.4]} 0-1

[Event "Late-Titled-Tuesday-Blitz-December-26-2023"]
[Site "Chess.com"]
[Date "2023.12.26"]
[Round "8"]
[White "SlipperySpeedster"]
[Black "Iball95"]
[Result "0-1"]
[WhiteElo "2645"]
[BlackElo "2821"]
[TimeControl "180+1"]
[EndTime "15:28:03 PST"]
[Termination "Iball95 won by resignation"]

1. Nf3 {[%clk 0:03:00.9]} 1... d5 {[%clk 0:02:59.6]} 2. b3 {[%clk 0:03:00.5]}
2... Nf6 {[%clk 0:02:59.3]} 3. Bb2 {[%clk 0:03:00.9]} 3... e6 {[%clk 0:03:00.2]}
4. g3 {[%clk 0:03:01.4]} 4... Be7 {[%clk 0:02:59.8]} 5. Bg2 {[%clk 0:03:02]}
5... O-O {[%clk 0:03:00.4]} 6. O-O {[%clk 0:03:02.8]} 6... c5 {[%clk 0:03:00.5]}
7. c4 {[%clk 0:03:03.5]} 7... Nc6 {[%clk 0:03:00.1]} 8. cxd5 {[%clk 0:03:03.7]}
8... exd5 {[%clk 0:03:01]} 9. d4 {[%clk 0:03:03.9]} 9... Ne4 {[%clk 0:03:01.4]}
10. Nbd2 {[%clk 0:03:03]} 10... Bf6 {[%clk 0:02:56.3]} 11. e3 {[%clk 0:02:54.7]}
11... Bg4 {[%clk 0:02:44.5]} 12. h3 {[%clk 0:02:50.2]} 12... Bh5 {[%clk
0:02:20.9]} 13. g4 {[%clk 0:02:47.6]} 13... Bg6 {[%clk 0:02:21.2]} 14. Nxe4
{[%clk 0:02:34.9]} 14... Bxe4 {[%clk 0:02:22.1]} 15. Rc1 {[%clk 0:02:33.9]}
15... Bxf3 {[%clk 0:02:14.1]} 16. Qxf3 {[%clk 0:02:23.1]} 16... cxd4 {[%clk
0:02:13.4]} 17. Qxd5 {[%clk 0:02:17.3]} 17... dxe3 {[%clk 0:02:11.8]} 18. Qxd8
{[%clk 0:02:03]} 18... exf2+ {[%clk 0:02:06.6]} 19. Rxf2 {[%clk 0:02:01.5]}
19... Bxd8 {[%clk 0:02:06.8]} 20. Bxc6 {[%clk 0:02:00.7]} 20... bxc6 {[%clk
0:02:07.7]} 21. Rfc2 {[%clk 0:02:00.6]} 21... Bb6+ {[%clk 0:02:03.7]} 22. Kg2
{[%clk 0:01:55.2]} 22... Rad8 {[%clk 0:02:02.3]} 23. Be5 {[%clk 0:01:36.5]}
23... f5 {[%clk 0:02:00.8]} 24. gxf5 {[%clk 0:01:30.8]} 24... Rxf5 {[%clk
0:02:01.7]} 25. Bg3 {[%clk 0:01:31.1]} 25... Rd3 {[%clk 0:01:49.6]} 26. Rc3
{[%clk 0:01:22.5]} 26... Rd2+ {[%clk 0:01:45.3]} 27. Kh1 {[%clk 0:01:22.6]}
27... Rxa2 {[%clk 0:01:44.1]} 28. Rxc6 {[%clk 0:01:21.9]} 28... h5 {[%clk
0:01:38.1]} 29. R6c3 {[%clk 0:01:12.5]} 29... Kf7 {[%clk 0:01:30.9]} 30. Rd1
{[%clk 0:01:06]} 30... g5 {[%clk 0:01:28.7]} 31. Bc7 {[%clk 0:00:56.2]} 31...
Bd4 {[%clk 0:01:17.8]} 32. Rcd3 {[%clk 0:00:53.4]} 32... Bc5 {[%clk 0:01:12.4]}
33. Rd5 {[%clk 0:00:48.9]} 33... Rxd5 {[%clk 0:01:06.1]} 34. Rxd5 {[%clk
0:00:48.6]} 34... Be7 {[%clk 0:01:07]} 35. Bh2 {[%clk 0:00:37.4]} 35... Ke6
{[%clk 0:01:03.7]} 36. Re5+ {[%clk 0:00:35.7]} 36... Kf6 {[%clk 0:01:03.7]} 37.
Rd5 {[%clk 0:00:32.6]} 37... a6 {[%clk 0:01:02.5]} 38. Bg1 {[%clk 0:00:32.4]}
38... Ke6 {[%clk 0:01:01.6]} 39. Rd3 {[%clk 0:00:27.8]} 39... Kf5 {[%clk
0:00:57.4]} 40. Rf3+ {[%clk 0:00:26.8]} 40... Kg6 {[%clk 0:00:56.7]} 41. Rf1
{[%clk 0:00:18]} 41... Bf6 {[%clk 0:00:55.7]} 42. Rc1 {[%clk 0:00:17.2]} 42...
Be5 {[%clk 0:00:55.4]} 43. Rc5 {[%clk 0:00:16.6]} 43... Bf4 {[%clk 0:00:53.6]}
44. Rd5 {[%clk 0:00:15.3]} 44... Kf6 {[%clk 0:00:53.5]} 45. Rc5 {[%clk
0:00:14.7]} 45... Kg6 {[%clk 0:00:53.1]} 46. Rd5 {[%clk 0:00:14.9]} 46... Rb2
{[%clk 0:00:49]} 47. Ra5 {[%clk 0:00:14.1]} 47... Rxb3 {[%clk 0:00:47.9]} 48.
Rxa6+ {[%clk 0:00:14.7]} 48... Kf5 {[%clk 0:00:48.4]} 49. Kg2 {[%clk 0:00:15.6]}
49... Rg3+ {[%clk 0:00:48.3]} 50. Kf1 {[%clk 0:00:11.2]} 50... Rxh3 {[%clk
0:00:48]} 51. Ra5+ {[%clk 0:00:12.1]} 51... Kg4 {[%clk 0:00:47.9]} 52. Bf2
{[%clk 0:00:13]} 52... Rf3 {[%clk 0:00:46.8]} 53. Kg2 {[%clk 0:00:13.9]} 53...
h4 {[%clk 0:00:46.3]} 54. Ra8 {[%clk 0:00:04.6]} 54... Rb3 {[%clk 0:00:46]} 55.
Rg8 {[%clk 0:00:03.6]} 55... h3+ {[%clk 0:00:46]} 56. Kh1 {[%clk 0:00:02.5]}
56... Rb1+ {[%clk 0:00:42.9]} 57. Bg1 {[%clk 0:00:02.7]} 57... h2 {[%clk
0:00:38]} 0-1

[Event "Late-Titled-Tuesday-Blitz-December-26-2023"]
[Site "Chess.com"]
[Date "2023.12.26"]
[Round "8"]
[White "Kaua18"]
[Black "gahryman"]
[Result "1-0"]
[WhiteElo "2562"]
[BlackElo "2650"]
[TimeControl "180+1"]
[EndTime "15:28:05 PST"]
[Termination "Kaua18 won on time"]

1. e4 {[%clk 0:02:58.2]} 1... c5 {[%clk 0:02:59.5]} 2. Nf3 {[%clk 0:02:58.1]}
2... Nc6 {[%clk 0:02:59.6]} 3. d4 {[%clk 0:02:56.9]} 3... cxd4 {[%clk
0:03:00.5]} 4. Nxd4 {[%clk 0:02:57.8]} 4... e5 {[%clk 0:03:00.7]} 5. Nb5 {[%clk
0:02:57.2]} 5... d6 {[%clk 0:03:01.1]} 6. N1c3 {[%clk 0:02:56.5]} 6... a6 {[%clk
0:03:00]} 7. Na3 {[%clk 0:02:56.2]} 7... Be7 {[%clk 0:03:00.8]} 8. Nc4 {[%clk
0:02:53.3]} 8... b5 {[%clk 0:02:58.2]} 9. Ne3 {[%clk 0:02:53.4]} 9... Nf6 {[%clk
0:02:58.9]} 10. Bd3 {[%clk 0:02:52.6]} 10... O-O {[%clk 0:02:57.6]} 11. O-O
{[%clk 0:02:52.4]} 11... Nb4 {[%clk 0:02:57.9]} 12. Be2 {[%clk 0:02:52.2]} 12...
Be6 {[%clk 0:02:54.4]} 13. Ncd5 {[%clk 0:02:46]} 13... Nbxd5 {[%clk 0:02:46.7]}
14. exd5 {[%clk 0:02:42.7]} 14... Bd7 {[%clk 0:02:46.8]} 15. c4 {[%clk
0:02:37.2]} 15... b4 {[%clk 0:02:45.9]} 16. a3 {[%clk 0:02:35.4]} 16... a5
{[%clk 0:02:43.1]} 17. Bd2 {[%clk 0:02:29.9]} 17... Qb6 {[%clk 0:02:40.9]} 18.
Nc2 {[%clk 0:02:03]} 18... b3 {[%clk 0:02:30.8]} 19. Ne1 {[%clk 0:01:59.6]}
19... Ne4 {[%clk 0:02:29.5]} 20. Be3 {[%clk 0:01:58.6]} 20... Nc5 {[%clk
0:02:29.4]} 21. Nd3 {[%clk 0:01:56.9]} 21... Bf6 {[%clk 0:02:12.3]} 22. Nxc5
{[%clk 0:01:46.3]} 22... dxc5 {[%clk 0:02:12]} 23. Bf3 {[%clk 0:01:40.5]} 23...
a4 {[%clk 0:01:57.7]} 24. Qd2 {[%clk 0:01:30.6]} 24... Qd6 {[%clk 0:01:53.8]}
25. Rad1 {[%clk 0:01:27]} 25... Rae8 {[%clk 0:01:43.4]} 26. Be4 {[%clk 0:01:04]}
26... g6 {[%clk 0:01:41.6]} 27. Qa5 {[%clk 0:01:00.8]} 27... Rc8 {[%clk
0:01:40.3]} 28. f3 {[%clk 0:00:59.6]} 28... Bg7 {[%clk 0:01:39.3]} 29. Rfe1
{[%clk 0:00:54]} 29... f5 {[%clk 0:01:38.7]} 30. Bb1 {[%clk 0:00:52.5]} 30... e4
{[%clk 0:01:35.5]} 31. Qd2 {[%clk 0:00:47.8]} 31... Rce8 {[%clk 0:01:32.1]} 32.
Qf2 {[%clk 0:00:32]} 32... Rc8 {[%clk 0:01:17.2]} 33. g3 {[%clk 0:00:16.6]}
33... Be5 {[%clk 0:00:59.4]} 34. Kg2 {[%clk 0:00:11.2]} 34... h5 {[%clk
0:00:33.5]} 35. Rf1 {[%clk 0:00:10.7]} 35... h4 {[%clk 0:00:28.9]} 36. f4 {[%clk
0:00:09.6]} 36... Bf6 {[%clk 0:00:27.5]} 37. Rh1 {[%clk 0:00:07.5]} 37... Kg7
{[%clk 0:00:25.9]} 38. Qd2 {[%clk 0:00:04.1]} 38... Rh8 {[%clk 0:00:25.1]} 39.
Kf2 {[%clk 0:00:04.3]} 39... Rh7 {[%clk 0:00:22.5]} 40. Rhg1 {[%clk 0:00:03.1]}
40... hxg3+ {[%clk 0:00:22.1]} 41. hxg3 {[%clk 0:00:03.1]} 41... Rch8 {[%clk
0:00:22.2]} 42. Rg2 {[%clk 0:00:03.7]} 42... Rh1 {[%clk 0:00:18]} 43. Rdg1
{[%clk 0:00:03.4]} 43... Rxg1 {[%clk 0:00:16.4]} 44. Rxg1 {[%clk 0:00:04.3]}
44... Kf7 {[%clk 0:00:14.7]} 45. Rg2 {[%clk 0:00:02.3]} 45... Qf8 {[%clk
0:00:13.8]} 46. Qa5 {[%clk 0:00:01.8]} 46... Bd4 {[%clk 0:00:12.6]} 47. Qa7
{[%clk 0:00:01.3]} 47... Bxe3+ {[%clk 0:00:10.4]} 48. Kxe3 {[%clk 0:00:02.2]}
48... Qe7 {[%clk 0:00:10.7]} 49. Rd2 {[%clk 0:00:02.4]} 49... Be8 {[%clk
0:00:00.2]} 50. d6 {[%clk 0:00:02.9]} 1-0

[Event "Late-Titled-Tuesday-Blitz-December-26-2023"]
[Site "Chess.com"]
[Date "2023.12.26"]
[Round "8"]
[White "severomorskij"]
[Black "MITerryble"]
[Result "0-1"]
[WhiteElo "2897"]
[BlackElo "3033"]
[TimeControl "180+1"]
[EndTime "15:28:08 PST"]
[Termination "MITerryble won by resignation"]

1. d4 {[%clk 0:03:00.9]} 1... e6 {[%clk 0:03:00]} 2. c4 {[%clk 0:03:00.5]} 2...
Bb4+ {[%clk 0:02:59.3]} 3. Nc3 {[%clk 0:02:59.9]} 3... b6 {[%clk 0:02:57.5]} 4.
Nf3 {[%clk 0:02:43.7]} 4... Bb7 {[%clk 0:02:57.6]} 5. Bg5 {[%clk 0:02:41]} 5...
Nf6 {[%clk 0:02:55.6]} 6. Nd2 {[%clk 0:02:38.3]} 6... h6 {[%clk 0:02:54.8]} 7.
Bh4 {[%clk 0:02:38.2]} 7... c5 {[%clk 0:02:48.9]} 8. d5 {[%clk 0:02:37.5]} 8...
O-O {[%clk 0:02:40]} 9. e4 {[%clk 0:02:33]} 9... exd5 {[%clk 0:02:35.4]} 10.
exd5 {[%clk 0:02:25.1]} 10... Bxc3 {[%clk 0:02:28.5]} 11. bxc3 {[%clk
0:02:24.7]} 11... Re8+ {[%clk 0:02:26.3]} 12. Be2 {[%clk 0:02:24.8]} 12... Qe7
{[%clk 0:02:24]} 13. Nf1 {[%clk 0:02:13.7]} 13... g5 {[%clk 0:02:18.8]} 14. Bg3
{[%clk 0:02:12.4]} 14... Ne4 {[%clk 0:02:19.2]} 15. Ne3 {[%clk 0:02:08.5]} 15...
d6 {[%clk 0:01:56.4]} 16. O-O {[%clk 0:02:01.6]} 16... Nxg3 {[%clk 0:01:51.3]}
17. hxg3 {[%clk 0:02:00.4]} 17... Nd7 {[%clk 0:01:48.5]} 18. Re1 {[%clk
0:01:45.8]} 18... Qf6 {[%clk 0:01:43.7]} 19. Qc2 {[%clk 0:01:37.4]} 19... Ne5
{[%clk 0:01:41]} 20. Ng4 {[%clk 0:01:23]} 20... Nxg4 {[%clk 0:01:30.9]} 21. Bxg4
{[%clk 0:01:23.9]} 21... Kg7 {[%clk 0:01:31.5]} 22. a4 {[%clk 0:01:17.1]} 22...
Ba6 {[%clk 0:01:26.5]} 23. Qd3 {[%clk 0:01:11.3]} 23... Re5 {[%clk 0:01:24.6]}
24. Bd7 {[%clk 0:00:50.4]} 24... Rd8 {[%clk 0:01:21.9]} 25. Bc6 {[%clk
0:00:42.1]} 25... Bc8 {[%clk 0:01:07.1]} 26. Rxe5 {[%clk 0:00:30.3]} 26... Qxe5
{[%clk 0:01:06.6]} 27. Qe3 {[%clk 0:00:21.4]} 27... Qxe3 {[%clk 0:00:51.1]} 28.
fxe3 {[%clk 0:00:22.3]} 28... Bd7 {[%clk 0:00:34.8]} 29. Bxd7 {[%clk 0:00:18.5]}
29... Rxd7 {[%clk 0:00:35.7]} 30. a5 {[%clk 0:00:19]} 30... Re7 {[%clk 0:00:19]}
31. Kf2 {[%clk 0:00:12.2]} 31... Re4 {[%clk 0:00:18.2]} 32. axb6 {[%clk
0:00:12.1]} 32... axb6 {[%clk 0:00:19.1]} 33. Ra6 {[%clk 0:00:11.3]} 33... Kf6
{[%clk 0:00:18.7]} 34. Rxb6 {[%clk 0:00:11.3]} 34... Ke5 {[%clk 0:00:19.1]} 35.
Rb7 {[%clk 0:00:10.3]} 35... Rxc4 {[%clk 0:00:17.4]} 36. Rxf7 {[%clk 0:00:09.7]}
36... Rxc3 {[%clk 0:00:18]} 37. Rh7 {[%clk 0:00:08.6]} 37... g4 {[%clk
0:00:16.5]} 38. Rxh6 {[%clk 0:00:08.3]} 38... Rc2+ {[%clk 0:00:16.8]} 39. Kf1
{[%clk 0:00:07.5]} 39... Kxd5 {[%clk 0:00:17.7]} 40. Rh4 {[%clk 0:00:06.9]}
40... Ke4 {[%clk 0:00:15.4]} 41. Rxg4+ {[%clk 0:00:03.4]} 41... Kxe3 {[%clk
0:00:15.7]} 42. Kg1 {[%clk 0:00:03.7]} 42... d5 {[%clk 0:00:16.2]} 43. Rg8
{[%clk 0:00:03.2]} 43... d4 {[%clk 0:00:16.5]} 44. Re8+ {[%clk 0:00:03.8]} 44...
Kd3 {[%clk 0:00:15.1]} 45. g4 {[%clk 0:00:04.2]} 45... c4 {[%clk 0:00:15]} 46.
g5 {[%clk 0:00:04.9]} 46... Ra2 {[%clk 0:00:15]} 47. g6 {[%clk 0:00:05.3]} 47...
Ra7 {[%clk 0:00:15.6]} 48. Rf8 {[%clk 0:00:05.1]} 48... c3 {[%clk 0:00:15.2]}
49. Rf7 {[%clk 0:00:05]} 49... Ra6 {[%clk 0:00:14.4]} 50. g7 {[%clk 0:00:05.2]}
50... Rg6 {[%clk 0:00:15]} 51. Kf2 {[%clk 0:00:04.3]} 51... Kd2 {[%clk
0:00:15.2]} 52. Rc7 {[%clk 0:00:04.5]} 52... c2 {[%clk 0:00:15.5]} 53. Kf3
{[%clk 0:00:05.1]} 53... c1=Q {[%clk 0:00:15.6]} 54. Rxc1 {[%clk 0:00:04.6]}
54... Kxc1 {[%clk 0:00:16.5]} 55. Ke4 {[%clk 0:00:05]} 55... Rxg2 {[%clk
0:00:15.9]} 56. Kxd4 {[%clk 0:00:05.2]} 56... Rxg7 {[%clk 0:00:16.1]} 57. Ke5
{[%clk 0:00:06.1]} 57... Rg4 {[%clk 0:00:16]} 58. Kf6 {[%clk 0:00:07]} 58... Kd2
{[%clk 0:00:16]} 0-1